bitfinex/quotes_SOLUSD_20250717
["timestamp","ask_amount","ask_price","bid_price","bid_amount"]
[1752776686381,29.9,174.24,174.22,0.03]
[1752776686568,29.9,174.24,174.22,0.68]
[1752776687781,29.9,174.24,174.23,0.68]
[1752776688886,29.9,174.24,174.23,12.71370183]
[1752776689472,29.9,174.24,174.23,0.68]
[1752776689674,29.9,174.24,174.22,0.03]
[1752776689872,42.60337497,174.24,174.22,0.03]
[1752776690188,36.30921413,174.24,174.22,0.03]
[1752776690376,30.57,174.24,174.22,0.03]
[1752776690686,29.9,174.24,174.22,0.03]
[1752776690874,29.9,174.24,174.23,0.68]
[1752776691367,29.9,174.24,174.22,0.03]
[1752776691683,29.9,174.24,174.22,0.71]
[1752776692265,29.9,174.24,174.22,0.03]
[1752776695369,29.9,174.24,174.22,0.71]
[1752776696259,4.29135249,174.23,174.22,0.03]
[1752776696466,11.25551464,174.23,174.22,0.03]
[1752776696662,16.99505432,174.23,174.22,0.03]
[1752776697393,10.70089217,174.23,174.22,0.03]
[1752776697589,16.99505432,174.23,174.22,0.03]
[1752776699085,11.2583615,174.23,174.22,0.03]
[1752776699488,4.96419935,174.23,174.22,0.03]
[1752776699690,10.70373903,174.23,174.22,0.03]
[1752776699892,16.99790118,174.23,174.22,0.03]
[1752776700587,1.6067,174.22,174.15,0.03]
[1752776700796,6.29416215,174.16,174.15,0.03]
[1752776701092,40.3883615,174.16,174.15,0.03]
[1752776701291,41.06257852,174.16,174.15,0.03]
[1752776701798,34.76841637,174.16,174.15,0.03]
[1752776701968,41.06257852,174.16,174.15,0.03]
[1752776702294,40.43257852,174.16,174.15,0.03]
[1752776703069,46.84442509,174.16,174.15,0.03]
[1752776703886,40.55026294,174.16,174.15,0.03]
[1752776704119,41.10257852,174.16,174.15,0.03]
[1752776704389,46.84442509,174.16,174.15,0.03]
[1752776706489,42.54600872,174.16,174.15,0.03]
[1752776706794,46.82911405,174.16,174.15,0.03]
[1752776708580,48.40161405,174.16,174.15,0.03]
[1752776708778,53.06036693,174.16,174.15,0.03]
[1752776709472,48.7772616,174.16,174.15,0.03]
[1752776709673,53.05409745,174.16,174.15,0.03]
[1752776710396,53.05409745,174.16,174.14,0.2]
[1752776710600,26.0,174.12,174.1,0.03]
[1752776710782,6.29416215,174.11,174.1,0.03]
[1752776710982,36.98416215,174.11,174.1,0.03]
[1752776712105,36.43349549,174.11,174.1,0.03]
[1752776712474,42.05765764,174.11,174.1,0.03]
[1752776712877,46.32743991,174.11,174.1,0.03]
[1752776713093,46.99743991,174.11,174.1,0.03]
[1752776713687,34.28978227,174.11,174.1,0.03]
[1752776713892,26.0,174.11,174.1,0.03]
[1752776714116,62.33416215,174.11,174.1,0.03]
[1752776714605,62.33416215,174.11,174.1,0.71]
[1752776714606,56.04,174.11,174.1,0.71]
[1752776714809,30.04,174.11,174.1,0.71]
[1752776716894,30.04,174.11,174.1,12.74798753]
[1752776717309,15.57838262,174.15,174.1,12.74798753]
[1752776717510,30.02,174.14,174.11,0.71]
[1752776717813,30.02,174.14,174.11,7.00416215]
[1752776718012,30.02,174.14,174.11,6.29416215]
[1752776718179,30.02,174.14,174.12,7.00416215]
[1752776718378,30.02,174.14,174.13,23.78884612]
[1752776718777,39.32422047,174.15,174.13,23.78884612]
[1752776719004,39.32422047,174.15,174.14,7.00416215]
[1752776719202,9.28422047,174.15,174.14,23.78884612]
[1752776719401,9.28422047,174.15,174.14,17.49468397]
[1752776719587,9.28422047,174.15,174.14,23.78884612]
[1752776722006,9.28422047,174.15,174.14,16.78468397]
[1752776722405,9.28422047,174.15,174.14,17.49468397]
[1752776722594,9.28422047,174.15,174.14,23.78884612]
[1752776722780,9.28422047,174.15,174.14,17.49468397]
[1752776723606,9.28422047,174.15,174.14,23.78884612]
[1752776723814,9.28422047,174.15,174.14,17.49468397]
[1752776724281,9.28422047,174.15,174.14,23.78884612]
[1752776727209,9.28422047,174.15,174.14,17.49468397]
[1752776727520,9.28422047,174.15,174.14,23.78884612]
[1752776728501,9.28422047,174.15,174.14,16.78468397]
[1752776728706,9.28422047,174.15,174.13,16.78468397]
[1752776728910,29.96,174.14,174.13,16.78468397]
[1752776729607,30.66,174.14,174.1,0.74]
[1752776730489,42.69692446,174.14,174.1,0.74]
[1752776730694,6.99416215,174.13,174.1,0.03]
[1752776730891,29.94,174.12,174.1,0.03]
[1752776731097,36.93416215,174.12,174.1,0.03]
[1752776731302,6.99416215,174.11,174.1,0.03]
[1752776732918,12.73765764,174.11,174.1,0.03]
[1752776736229,17.00843892,174.11,174.1,0.03]
[1752776738507,17.0111905,174.11,174.1,0.03]
[1752776738818,43.0111905,174.11,174.1,0.03]
[1752776741402,43.01613177,174.11,174.1,0.03]
[1752776742535,42.31761679,174.11,174.1,0.03]
[1752776742693,43.01761679,174.11,174.1,0.03]
[1752776744938,43.02204404,174.11,174.1,0.03]
[1752776749912,38.73765764,174.11,174.1,0.03]
[1752776756616,36.07416215,174.05,174.04,0.03]
[1752776757515,35.52547543,174.05,174.04,0.03]
[1752776757716,41.81963758,174.05,174.04,0.03]
[1752776758715,35.52547543,174.05,174.04,0.03]
[1752776759027,29.78,174.05,174.04,0.75]
[1752776759225,41.81963758,174.05,174.04,0.75]
[1752776759432,41.81963758,174.05,174.04,0.03]
[1752776760029,42.47963758,174.05,174.04,0.03]
[1752776763011,193.69060732,174.05,174.04,1e-08]
[1752776763244,195.30630732,174.05,174.04,1e-08]
[1752776763543,195.30630732,174.05,174.03,1e-08]
[1752776763723,26.0,174.02,173.99,0.2]
[1752776763922,6.29416215,174.0,173.99,0.2]
[1752776764325,6.95416215,174.0,173.99,0.2]
[1752776764627,36.09416215,174.0,173.99,0.2]
[1752776765540,36.75416215,174.0,173.99,0.2]
[1752776765738,42.50128858,174.0,173.99,0.2]
[1752776768158,42.50128858,174.0,173.99,0.17327569]
[1752776771038,36.20712643,174.0,173.99,0.17327569]
[1752776771251,42.50128858,174.0,173.99,0.17327569]
[1752776771731,48.89788858,174.0,173.99,0.17327569]
[1752776771933,42.50128858,174.0,173.99,0.17327569]
[1752776772152,35.56712643,174.0,173.99,0.17327569]
[1752776772332,55.82,174.0,173.99,0.89327569]
[1752776772656,62.11416215,174.0,173.99,0.89327569]
[1752776773255,62.11416215,174.0,173.99,0.17327569]
[1752776773852,62.11416215,174.0,173.99,0.89327569]
[1752776774054,55.82,174.0,173.99,0.89327569]
[1752776774349,29.82,174.0,173.99,0.89327569]
[1752776774554,29.82,174.0,173.99,6.64073244]
[1752776774735,29.82,174.0,173.99,29.71957856]
[1752776778362,29.8,174.02,173.99,44.08822043]
[1752776778543,29.8,174.02,174.01,23.07884612]
[1752776778743,29.8,174.02,174.01,23.79884612]
[1752776778940,25.6,174.12,174.01,23.79884612]
[1752776779139,25.6,174.12,174.0,6.86887479]
[1752776779140,6.29416215,174.1,174.04,6.29416215]
[1752776779362,29.82,174.09,174.05,7.01416215]
[1752776779560,29.82,174.09,174.06,0.72]
[1752776780343,29.82,174.09,174.07,0.72]
[1752776780967,29.82,174.09,174.08,0.72]
[1752776782349,29.82,174.09,174.08,6.46448529]
[1752776782658,29.82,174.09,174.08,29.54333141]
[1752776786961,0.06,174.12,174.08,45.47034464]
[1752776787153,29.84,174.12,174.11,23.07884612]
[1752776787359,29.84,174.12,174.11,17.50468397]
[1752776787553,29.84,174.12,174.11,23.79884612]
[1752776788156,0.06,174.12,174.11,23.79884612]
[1752776788942,0.06,174.12,174.11,30.11669115]
[1752776790646,1e-08,174.12,174.11,30.11669115]
[1752776792071,1e-08,174.14,174.13,42.78468397]
[1752776792249,1e-08,174.14,174.13,49.6531297]
[1752776792567,1e-08,174.14,174.13,50.3731297]
[1752776792954,1e-08,174.14,174.13,56.11596551]
[1752776793372,29.76,174.2,174.14,16.78468397]
[1752776793562,29.76,174.2,174.16,16.78468397]
[1752776793750,29.76,174.2,174.19,23.07884612]
[1752776794075,29.76,174.2,174.19,23.79884612]
[1752776794645,29.76,174.2,174.19,16.78468397]
[1752776795373,29.76,174.2,174.19,29.5397038]
[1752776796255,0.06,174.21,174.2,16.78468397]
[1752776796454,0.06,174.21,174.2,23.07884612]
[1752776796664,0.06,174.21,174.2,23.79884612]
[1752776797278,0.06,174.21,174.2,29.53937424]
[1752776797955,0.06,174.21,174.19,5.74072893]
[1752776798154,0.06,174.21,174.19,28.81957505]
[1752776798354,0.06,174.21,174.19,22.5254129]
[1752776798571,0.06,174.21,174.19,28.81957505]
[1752776798768,0.06,174.21,174.2,7.01416215]
[1752776798956,0.06,174.21,174.2,23.79884612]
[1752776799157,0.06,174.21,174.2,30.09300827]
[1752776799364,0.06,174.23,174.22,22.5245531]
[1752776799576,0.06,174.23,174.22,29.39270216]
[1752776799779,0.06,174.23,174.22,30.11270216]
[1752776800361,0.06,174.23,174.22,56.11270216]
[1752776806174,0.06,174.24,174.23,16.78468397]
[1752776806359,0.06,174.24,174.23,29.5383858]
[1752776807686,0.06,174.24,174.23,30.11233976]
[1752776810462,0.06,174.24,174.23,23.81817761]
[1752776810667,0.06,174.24,174.23,28.8183858]
[1752776810868,0.06,174.24,174.23,29.39233976]
[1752776812288,0.06,174.24,174.23,28.8183858]
[1752776815361,0.06,174.24,174.23,29.5283858]
[1752776815784,0.06,174.24,174.23,28.8183858]
[1752776820077,0.06,174.24,174.23,22.52422365]
[1752776820277,0.06,174.24,174.23,23.07884612]
[1752776821266,0.06,174.24,174.23,28.8183858]
[1752776821472,0.06,174.24,174.23,29.5283858]
[1752776821892,0.06,174.24,174.23,30.10233976]
[1752776824595,0.06,174.24,174.23,29.5283858]
[1752776824799,0.06,174.24,174.23,28.8183858]
[1752776825996,0.78,174.24,174.23,16.78468397]
[1752776826203,0.78,174.24,174.22,16.81468397]
[1752776826502,0.72,174.23,174.22,16.81468397]
[1752776826797,0.78,174.24,174.22,28.84861536]
[1752776827877,0.06,174.24,174.23,7.00416215]
[1752776828713,0.06,174.24,174.23,12.74370183]
[1752776829088,0.06,174.24,174.23,29.5283858]
[1752776832605,0.1,174.27,174.24,16.78468397]
[1752776832915,0.1,174.27,174.26,12.03271373]
[1752776833284,0.1,174.27,174.26,12.74271373]
[1752776834092,0.1,174.27,174.26,29.5273977]
[1752776834407,1e-08,174.27,174.26,56.10125285]
[1752776837528,1e-08,174.27,174.26,55.39125285]
[1752776837684,1e-08,174.27,174.26,48.52323555]
[1752776837885,1e-08,174.27,174.26,54.8173977]
[1752776839186,1e-08,174.27,174.26,28.8173977]
[1752776840211,0.68000001,174.27,174.23,5.73953968]
[1752776840414,1e-08,174.27,174.26,6.29416215]
[1752776840616,1e-08,174.27,174.26,7.01416215]
[1752776841511,1e-08,174.27,174.26,12.75271373]
[1752776842719,1e-08,174.27,174.26,5.73855158]
[1752776842886,1e-08,174.27,174.26,12.06271373]
[1752776844489,1e-08,174.27,174.26,28.8473977]
[1752776845118,0.68000001,174.27,174.26,28.8473977]
[1752776846314,0.68000001,174.27,174.26,22.55323555]
[1752776847323,1e-08,174.27,174.26,28.8473977]
[1752776847994,1e-08,174.27,174.26,22.55323555]
[1752776848201,0.68000001,174.27,174.26,22.55323555]
[1752776848627,1e-08,174.27,174.26,28.8473977]
[1752776848802,1e-08,174.27,174.26,29.5673977]
[1752776850009,1e-08,174.27,174.26,28.8473977]
[1752776850499,1e-08,174.27,174.26,29.5673977]
[1752776851022,1e-08,174.27,174.26,28.8473977]
[1752776851232,1e-08,174.27,174.26,29.5673977]
[1752776854423,1e-08,174.27,174.26,28.8473977]
[1752776855226,1e-08,174.27,174.26,29.5673977]
[1752776858007,1e-08,174.27,174.26,56.14125285]
[1752776862529,1e-08,174.27,174.26,49.8470907]
[1752776862732,1e-08,174.27,174.26,56.14125285]
[1752776863822,1e-08,174.27,174.26,49.8470907]
[1752776864030,1e-08,174.27,174.26,54.8473977]
[1752776864418,1e-08,174.27,174.26,55.5673977]
[1752776864619,1e-08,174.27,174.26,48.55323555]
[1752776864818,1e-08,174.27,174.26,54.8473977]
[1752776866533,1e-08,174.27,174.26,28.8473977]
[1752776866728,0.68000001,174.27,174.26,28.8473977]
[1752776867513,0.68000001,174.27,174.26,16.81468397]
[1752776868037,0.68000001,174.27,174.26,22.55323555]
[1752776868336,6.97416216,174.27,174.26,0.03]
[1752776868506,18.79288445,174.27,174.26,0.03]
[1752776868912,48.43288445,174.27,174.26,0.03]
[1752776871530,52.72030669,174.27,174.26,0.03]
[1752776872126,46.42614454,174.27,174.26,0.03]
[1752776872418,52.72030669,174.27,174.26,0.03]
[1752776874620,16.78614454,174.27,174.26,0.03]
[1752776874825,52.74030669,174.27,174.26,0.03]
[1752776875540,40.70792225,174.27,174.26,0.03]
[1752776875733,47.0020844,174.27,174.26,0.03]
[1752776876920,42.71466216,174.27,174.26,0.03]
[1752776878546,29.66000001,174.27,174.26,0.03]
[1752776880431,0.67000001,174.27,174.26,0.03]
[1752776880647,30.33000001,174.27,174.26,0.03]
[1752776881027,36.62416216,174.27,174.26,0.03]
[1752776881835,30.33000001,174.27,174.26,0.03]
[1752776882029,29.66000001,174.27,174.26,0.73]
[1752776882331,1e-08,174.27,174.26,23.80884612]
[1752776884136,1e-08,174.27,174.26,29.5473977]
[1752776890461,1e-08,174.28,174.26,29.5473977]
[1752776890772,0.06,174.31,174.27,50.35266834]
[1752776890958,0.06,174.31,174.3,23.07884612]
[1752776891463,0.06,174.31,174.3,23.77884612]
[1752776892242,0.06,174.31,174.3,29.51608077]
[1752776895241,0.06,174.31,174.3,30.08980423]
[1752776896350,0.06,174.31,174.3,29.51608077]
[1752776902070,0.06,174.31,174.3,28.81608077]
[1752776902666,0.06,174.31,174.3,29.52608077]
[1752776903545,0.06,174.31,174.3,22.52191862]
[1752776903748,0.78,174.31,174.3,5.73723465]
[1752776903975,0.78,174.31,174.3,12.0313968]
[1752776904477,0.78,174.31,174.28,80.53777195]
[1752776904780,0.78,174.31,174.28,86.8319341]
[1752776905967,0.72,174.3,174.29,6.29416215]
[1752776906794,0.72,174.3,174.28,5.73777195]
[1752776907347,0.72,174.3,174.29,6.29416215]
[1752776907547,0.72,174.3,174.29,12.03172598]
[1752776907975,0.72,174.3,174.29,5.73756383]
[1752776908282,0.72,174.3,174.28,12.06196651]
[1752776908477,0.72,174.3,174.28,6.32416215]
[1752776908784,0.06,174.31,174.28,6.32416215]
[1752776908946,0.72,174.29,174.28,6.32416215]
[1752776909870,0.72,174.29,174.28,0.03]
[1752776912349,7.01416215,174.29,174.28,0.03]
[1752776913669,0.72,174.29,174.28,0.03]
[1752776913875,7.01416215,174.29,174.28,0.03]
[1752776915071,12.75172598,174.29,174.28,0.03]
[1752776915971,0.72,174.29,174.28,0.03]
[1752776916175,7.01416215,174.29,174.28,0.03]
[1752776917274,8.1445,174.3,174.28,0.03]
[1752776917451,38.4845,174.3,174.28,0.03]
[1752776917652,0.72,174.29,174.28,0.03]
[1752776918963,37.7645,174.3,174.28,0.03]
[1752776919163,36.9733,174.3,174.28,0.03]
[1752776920659,36.9733,174.3,174.28,0.74]
[1752776920660,29.62,174.3,174.28,0.74]
[1752776920977,0.06,174.31,174.29,7.00416215]
[1752776921156,0.06,174.31,174.3,6.29416215]
[1752776921972,0.06,174.31,174.29,0.71]
[1752776922554,0.06,174.31,174.28,16.81468397]
[1752776922781,0.06,174.31,174.29,12.03153689]
[1752776923578,0.06,174.31,174.29,12.74153689]
[1752776924489,0.06,174.31,174.3,6.29416215]
[1752776924694,0.06,174.31,174.29,12.74153689]
[1752776925187,0.06,174.31,174.29,6.44737474]
[1752776925492,0.06,174.31,174.29,12.74153689]
[1752776927585,0.06,174.31,174.29,6.44737474]
[1752776927773,0.06,174.31,174.29,12.74153689]
[1752776927975,0.77,174.31,174.28,22.55249956]
[1752776928185,0.77,174.31,174.28,28.84666171]
[1752776928374,0.77,174.31,174.28,29.51666171]
[1752776928684,0.71,174.3,174.28,0.03]
[1752776929767,0.71,174.29,174.28,0.03]
[1752776930284,0.06,174.31,174.28,6.32416215]
[1752776930494,0.77,174.31,174.28,6.32416215]
[1752776930663,0.77,174.31,174.28,6.99416215]
[1752776931162,0.71,174.3,174.28,6.32416215]
[1752776932382,0.71,174.3,174.28,12.06203233]
[1752776932586,0.06,174.31,174.28,12.06203233]
[1752776932788,29.6,174.3,174.29,6.29416215]
[1752776933294,29.6,174.3,174.29,6.96416215]
[1752776933687,29.6,174.3,174.29,23.74884612]
[1752776933994,0.06,174.31,174.3,16.78468397]
[1752776934167,0.06,174.31,174.3,23.74884612]
[1752776934368,0.06,174.31,174.3,29.48608077]
[1752776941308,0.06,174.31,174.3,28.81608077]
[1752776941702,0.06,174.31,174.3,29.48608077]
[1752776942915,0.06,174.31,174.3,23.19191862]
[1752776943210,0.06,174.31,174.3,29.48608077]
[1752776951916,0.06,174.31,174.3,23.19191862]
[1752776952218,0.06,174.31,174.3,29.48608077]
[1752776959806,0.06,174.38,174.37,42.78468397]
[1752776960137,0.1,174.42,174.4,42.78468397]
[1752776960311,0.1,174.42,174.4,49.07884612]
[1752776960508,0.1,174.42,174.4,49.75884612]
[1752776962028,0.1,174.42,174.4,55.49279107]
[1752776962232,0.1,174.42,174.4,49.19862892]
[1752776962518,0.1,174.42,174.4,55.49279107]
[1752776965210,0.1,174.42,174.4,28.81279107]
[1752776966626,0.78,174.41,174.39,6.29416215]
[1752776967215,0.06,174.41,174.39,6.29416215]
[1752776967531,0.06,174.41,174.39,23.07884612]
[1752776967532,0.72,174.4,174.39,23.07884612]
[1752776967825,0.72,174.4,174.39,28.81311987]
[1752776970403,0.06,174.41,174.39,28.81311987]
[1752776970603,0.06,174.41,174.4,6.29416215]
[1752776971724,0.06,174.41,174.4,12.0281071]
[1752776972607,0.06,174.41,174.4,28.81279107]
[1752776972806,0.06,174.41,174.4,29.49279107]
[1752776974615,0.1,174.42,174.4,29.49279107]
[1752776974808,0.72,174.44,174.41,6.29416215]
[1752776975009,0.1,174.45,174.42,6.29416215]
[1752776975316,0.72,174.43,174.42,6.29416215]
[1752776975723,0.72,174.44,174.42,6.29416215]
[1752776976106,0.1,174.45,174.42,6.29416215]
[1752776976306,0.1,174.45,174.44,6.29416215]
[1752776976517,0.82,174.45,174.44,16.78468397]
[1752776976717,0.1,174.45,174.44,16.78468397]
[1752776976917,0.1,174.45,174.4,14.90825687]
[1752776976918,0.1,174.45,174.41,22.51798703]
[1752776977235,0.72,174.44,174.41,22.51798703]
[1752776977419,0.72,174.44,174.4,5.73383042]
[1752776977619,0.72,174.44,174.4,12.02799257]
[1752776977924,0.72,174.44,174.41,6.29416215]
[1752776978328,0.72,174.43,174.42,6.29416215]
[1752776978534,30.26,174.45,174.42,28.81213358]
[1752776978741,30.26,174.45,174.43,6.29416215]
[1752776979038,0.72,174.47,174.43,6.29416215]
[1752776979234,29.78402303,174.47,174.44,6.29416215]
[1752776979540,7.9743,174.48,174.44,6.29416215]
[1752776979858,37.5143,174.48,174.45,6.29416215]
[1752776981144,0.1,174.47,174.44,23.07884612]
[1752776981436,0.1,174.46,174.44,23.07884612]
[1752776982135,0.1,174.46,174.44,6.29416215]
[1752776982440,0.1,174.46,174.43,23.07884612]
[1752776982614,0.1,174.45,174.43,23.07884612]
[1752776983618,49.50980727,174.48,174.43,28.81174177]
[1752776983813,0.1,174.47,174.44,6.29416215]
[1752776984016,0.1,174.46,174.44,6.29416215]
[1752776984660,37.4843,174.48,174.44,6.29416215]
[1752776984941,0.1,174.47,174.44,6.29416215]
[1752776987745,0.1,174.46,174.44,6.29416215]
[1752776989844,0.1,174.46,174.43,16.78468397]
[1752776990146,0.1,174.46,174.42,16.78468397]
[1752776990348,0.1,174.46,174.43,6.29416215]
[1752776990549,0.1,174.46,174.44,6.29416215]
[1752776991043,43.88565517,174.48,174.44,6.29416215]
[1752776991246,43.88565517,174.48,174.44,6.99416215]
[1752776991549,0.67,174.47,174.44,6.29416215]
[1752776991849,0.67,174.46,174.43,6.29416215]
[1752776993647,0.67,174.45,174.42,16.78468397]
[1752776993849,29.54,174.44,174.41,23.07884612]
[1752776994036,29.54,174.44,174.42,6.29416215]
[1752776994355,29.54,174.44,174.4,5.73383023]
[1752776994548,29.54,174.44,174.42,6.29416215]
[1752776994725,30.21,174.44,174.41,6.29416215]
[1752776994926,0.67,174.43,174.39,26.0]
[1752776995142,0.67,174.42,174.4,6.29416215]
[1752776995340,29.52,174.41,174.4,6.29416215]
[1752776996641,29.52,174.41,174.4,6.99416215]
[1752776997750,29.52,174.41,174.4,0.7]
[1752776998058,29.52,174.41,174.4,6.99416215]
[1752777000250,29.52,174.41,174.4,6.59416215]
[1752777000632,29.52,174.41,174.4,7.29416215]
[1752777001151,0.67,174.43,174.4,6.59416215]
[1752777001345,0.67,174.43,174.41,6.29416215]
[1752777001654,0.67,174.43,174.4,6.59416215]
[1752777002656,0.67,174.42,174.4,0.3]
[1752777002955,29.52,174.41,174.4,0.3]
[1752777006160,0.03,174.47,174.41,16.78468397]
[1752777006332,29.52,174.46,174.43,16.78468397]
[1752777006660,29.52,174.46,174.45,6.29416215]
[1752777006954,29.52,174.46,174.45,6.99416215]
[1752777007658,0.03,174.47,174.46,16.78468397]
[1752777007843,0.03,174.47,174.46,23.77884612]
[1752777008663,0.03,174.47,174.46,29.51081906]
[1752777009237,0.03,174.47,174.46,23.21665691]
[1752777009457,0.03,174.47,174.46,29.51081906]
[1752777010961,0.03,174.47,174.46,23.21665691]
[1752777011162,0.03,174.47,174.46,29.51081906]
[1752777012966,0.03,174.47,174.46,30.08401635]
[1752777013648,0.67,174.52,174.46,23.21665691]
[1752777013961,0.67,174.51,174.46,5.73197294]
[1752777014168,0.67,174.5,174.47,6.29416215]
[1752777014374,0.67,174.52,174.48,6.29416215]
[1752777014548,0.67,174.52,174.5,6.29416215]
[1752777014747,30.17,174.52,174.49,6.29416215]
[1752777014941,30.17,174.52,174.48,12.72529947]
[1752777015261,0.67,174.51,174.48,5.73113732]
[1752777015441,29.5,174.52,174.46,0.7]
[1752777015442,0.67,174.5,174.47,5.73156147]
[1752777015638,0.67,174.49,174.47,6.29416215]
[1752777016069,0.67,174.49,174.46,12.02603473]
[1752777016572,30.17,174.48,174.44,12.02668458]
[1752777016786,6.96416215,174.47,174.42,6.29416215]
[1752777016945,6.29416215,174.46,174.41,22.51807256]
[1752777017269,0.67,174.45,174.42,6.29416215]
[1752777017771,6.97416215,174.47,174.42,6.97416215]
[1752777018069,0.68,174.46,174.42,6.97416215]
[1752777018365,0.68,174.46,174.43,12.02712093]
[1752777018570,0.68,174.48,174.44,6.97416215]
[1752777018754,29.5,174.47,174.45,6.29416215]
[1752777019473,29.5,174.47,174.45,6.97416215]
[1752777020075,29.5,174.47,174.45,6.29416215]
[1752777020595,29.5,174.49,174.46,6.97416215]
[1752777020873,29.5,174.49,174.47,6.97416215]
[1752777021876,29.5,174.49,174.47,12.70578348]
[1752777022544,29.5,174.49,174.48,6.97416215]
[1752777022746,29.5,174.49,174.47,5.73162133]
[1752777023058,29.5,174.49,174.47,12.02578348]
[1752777023465,29.5,174.49,174.47,6.29416215]
[1752777023684,29.5,174.49,174.47,12.02577454]
[1752777024262,29.5,174.52,174.48,6.97416215]
[1752777024465,29.5,174.52,174.5,6.29416215]
[1752777024659,0.03,174.53,174.48,0.68]
[1752777024851,29.53,174.53,174.51,6.29416215]
[1752777026272,29.53,174.53,174.51,12.02444243]
[1752777026579,0.03,174.53,174.52,6.29416215]
[1752777026766,0.03,174.53,174.52,6.97416215]
[1752777027579,0.03,174.53,174.52,6.29416215]
[1752777027962,0.03,174.53,174.52,6.97416215]
[1752777028161,0.03,174.53,174.52,12.70416444]
[1752777028760,0.03,174.53,174.52,29.48884841]
[1752777030770,0.03,174.53,174.52,22.51468626]
[1752777030973,0.03,174.53,174.52,28.80884841]
[1752777031180,0.03,174.53,174.51,5.73031514]
[1752777031388,0.03,174.53,174.52,6.29416215]
[1752777032591,0.03,174.53,174.52,12.02416444]
[1752777034073,0.03,174.53,174.52,6.41000229]
[1752777034278,0.03,174.53,174.52,12.70416444]
[1752777034478,0.03,174.53,174.52,12.02416444]
[1752777035888,0.03,174.53,174.52,5.73000229]
[1752777036087,0.03,174.53,174.52,12.02416444]
[1752777036286,0.03,174.53,174.52,12.70416444]
[1752777036986,0.03,174.53,174.52,6.41000229]
[1752777037180,0.03,174.53,174.52,12.70416444]
[1752777037360,0.03,174.53,174.52,6.41000229]
[1752777037565,0.03,174.53,174.52,12.70416444]
[1752777037779,0.03,174.53,174.52,6.41000229]
[1752777038186,0.03,174.53,174.52,12.02416444]
[1752777040011,0.03,174.53,174.52,29.48884841]
[1752777043472,0.03,174.53,174.52,23.19468626]
[1752777043775,0.03,174.53,174.52,29.48884841]
[1752777044195,0.03,174.54,174.53,16.78468397]
[1752777044402,0.03,174.54,174.53,24.33181351]
[1752777045286,0.03,174.54,174.53,30.06148749]
[1752777045594,0.03,174.54,174.53,23.19435795]
[1752777045779,0.03,174.54,174.53,29.4885201]
[1752777060183,0.03,174.54,174.53,28.8085201]
[1752777060379,0.03,174.54,174.52,0.3]
[1752777060380,0.68,174.54,174.52,0.3]
[1752777060583,0.65,174.53,174.52,0.3]
[1752777062110,0.03,174.54,174.52,0.3]
[1752777062417,0.68,174.54,174.52,0.3]
[1752777062602,0.65,174.53,174.52,0.3]
[1752777066510,0.68,174.53,174.52,6.03000229]
[1752777066712,0.68,174.53,174.52,0.3]
[1752777067219,0.03,174.53,174.52,0.3]
[1752777067397,0.03,174.53,174.52,12.32416444]
[1752777067595,0.03,174.53,174.52,6.59416215]
[1752777067786,0.03,174.53,174.52,0.3]
[1752777067985,0.68,174.53,174.52,0.3]
[1752777068213,0.03,174.53,174.52,12.32416444]
[1752777068920,0.03,174.53,174.52,6.03000229]
[1752777069119,0.03,174.53,174.52,12.32416444]
[1752777070034,0.03,174.53,174.52,0.3]
[1752777070232,0.68,174.53,174.52,0.3]